Workbook

Sheet Sheet1
A1: USDA - RHS | C1: Title of Information Document | I1: OMB No.
J2: 0575-AD02
A3: SUMMARY OF INFORMATION COLLECTION | C3: 7 CFR 3570 Technical Assistance Programs | I3: Date Prepared
J4: 2019-04-19
A5: INSTRUCTIONS: | E5: > | F5: (f) TOTAL | H5: (h) TOTAL
A6: Use this form when a single information collection document involves multiple reporting and | E6: > | F6: - | G6: = (e) Average | H6: - | I6: = (g) Average | J6: - | K6: = (j) Average
A7: recordkeeping requirements. | E7: > | F7: (d) TOTAL | H7: (f) TOTAL | J7: (i) TOTAL
A8: IDENTIFICATION OF REPORTING AND RECORDKEEPPING REQUIREMENTS | G8: ANNUAL BURDEN
C9: FORM | F9: REPORTS | J9: RECORDS
C10: NO(s) | D10: NO. OF | E10: NO. OF | F10: TOTAL | G10: HOURS | H10: TOTAL | I10: NO. OF | J10: ANNUAL | K10: TOTAL
A11: SECTION OF | C11: (If "none" | D11: RESPON- | E11: RESPONSES | F11: ANNUAL | G11: PER | H11: HOURS | I11: RECORD- | J11: HOURS PER | K11: RECORD-
A12: REGULATIONS | B12: DESCRIPTION | C12: so state) | D12: DENTS | E12: PER | F12: RESPONSES | G12: RESPONSE | H12: (Col. f & g) | I12: KEEPERS | J12: RECORD- | K12: KEEPING
E13: RESPON- | F13: (Col. d & e) | J13: KEEPER | K13: HOURS
E14: DENT | K14: (Col. i & j)
A15: (a) | B15: (b) | C15: (c) | D15: (d) | E15: (e) | F15: (f) | G15: (g) | H15: (h) | I15: (i) | J15: (j) | K15: (k)
B16: Reporting Requirements - Non Forms
A17: 3570.265(c)(6) | B17: Documentation of assistance provided to Rural Development employees | C17: Written | D17: 51 | E17: 1 | F17: 51 | G17: 0.25 | H17: =SUM(F17*G17) -> 12.75
A19: 3570.265(c)(9) | B19: Indirect Cost Agreement | C19: Written | D19: 51 | E19: 1 | F19: =SUM(D19*E19) -> 51 | G19: 1.00 | H19: =SUM(F19*G19) -> 51.00
A21: 3570.265(c)(10) | B21: Statement of Compliance , Title VI of Civil Rights Act of 1964 | C21: Written | D21: 51 | E21: 1 | F21: =SUM(D21*E21) -> 51 | G21: 0.50 | H21: =SUM(F21*G21) -> 25.50
A23: 3570.265(d)(1)(i) | B23: Evidence of Legal Existence and Authority | C23: Written | D23: 51 | E23: 1 | F23: =SUM(D23*E23) -> 51 | G23: 0.25 | H23: =SUM(F23*G23) -> 12.75
A25: 3570.265(d)(1)(ii) | B25: Evidence of Tax Exempt Status | C25: Written | D25: 51 | E25: 1 | F25: 51 | G25: 0.25 | H25: =SUM(F25*G25) -> 12.75
A27: 3570.265(d)(2) | B27: Narrative - Project Proposal | C27: Written | D27: 51 | E27: 1 | F27: 51 | G27: 1.00 | H27: =F27*G27 -> 51.00
A29: 3570.265(d)(3) | B29: Latest Financial Information | C29: Written | D29: 51 | E29: 1 | F29: =SUM(D29*E29) -> 51 | G29: 1.00 | H29: =SUM(F29*G29) -> 51.00
A31: 3570.265(d)(4) | B31: Documentation of cash matching funds | C31: Written | D31: 51 | E31: 1 | F31: 51 | G31: 0.50 | H31: =F31*G31 -> 25.50
A33: 3570.265(d)(5) | B33: Scope of Work/Work Plan | C33: Written | D33: 51 | E33: 1 | F33: 51 | G33: 2.00 | H33: =F33*G33 -> 102.00
A35: 3570.265(d)(7) | B35: Budget justification | C35: Written | D35: 51 | E35: 1 | F35: 51 | G35: 5.00 | H35: =F35*G35 -> 255.00
A37: 3570.265(d)(8) | B37: Evidence of Financial Management System | C37: Written | D37: 51 | E37: 1 | F37: =SUM(D37*E37) -> 51 | G37: 0.25 | H37: =SUM(F37*G37) -> 12.75
A39: 3570.265(d)(9) | B39: Documentation on each of the priority ranking criteria | C39: Written | D39: 51 | E39: 1 | F39: 51 | G39: 10.00 | H39: =F39*G39 -> 510.00
B40: Subtotal | F40: =SUM(F17:F39) -> 612 | H40: =SUM(H17:H39) -> 1,122.00
B42: Awardees
A43: 1775.2 | B43: Project Performance Report | C43: Written | D43: 12 | E43: 4 | F43: 12 | G43: 12.00 | H43: =SUM(F43*G43) -> 144.00
A45: 1775.21 | B45: Audit | C45: Written | D45: 12 | E45: 1 | F45: =SUM(D45*E45) -> 12 | G45: 3.00 | H45: =SUM(F45*G45) -> 36.00
A47: 1775.21 | B47: Financial Statements | C47: Written | D47: 12 | E47: 1 | F47: =SUM(D47*E47) -> 12 | G47: 1.00 | H47: =SUM(F47*G47) -> 12.00
B48: Subtotal | F48: =SUM(F43:F47) -> 36 | H48: =SUM(H43:H47) -> 192.00
B50: Reporting Requirements - Forms
A51: 3570.265(c)(3) | B51: Certification Regarding Debarment, Suspension, and Other Responsibility Matters - Primary Covered Transactions | C51: AD-1047 (0505-0027) | D51: 51 | E51: 1 | F51: 51 | G51: 0.25 | H51: =F51*G51 -> 12.75
A53: 3570.265(c)(5) | B53: Certification Regarding Debarment | C53: AD-1048 (0505-0027) | D53: 51 | E53: 1 | F53: 51 | G53: 0.25 | H53: =SUM(F53*G53) -> 12.75
A55: 3570.265(c)(4) | B55: Certification Regarding Drug-Free Workplace Requirements (Grants) Alternative I - for Grantees Other Than Individuals | C55: AD-1049 (0505-0027) | D55: 51 | E55: 1 | F55: 51 | G55: 0.25 | H55: =SUM(F55*G55) -> 12.75
A57: 3570.265(c)(7) | B57: Equal Opportunity Agreement | C57: RD 400-1 (0575-0018) | D57: 51 | E57: 1 | F57: 51 | G57: 0.17 | H57: =SUM(F57*G57) -> 8.67
A59: 3570.265(c)(8) | B59: Assurance Agreement | C59: RD 400-4 (0575-0018) | D59: 51 | E59: 1 | F59: 51 | G59: 0.25 | H59: =SUM(F59*G59) -> 12.75
A61: 3570.272( e ) | B61: Community Facilities Technical Assistance and Training Grant Agreement | C61: RD 3570-4 (0575-0198) | D61: 12 | E61: 1 | F61: 12 | G61: 2.00 | H61: =F61*G61 -> 24.00
B62: Subtotal | F62: =SUM(F51:F61) -> 267 | H62: =SUM(H51:H61) -> 83.67
B63: Grand Total | F63: =F40+F48+F62 -> 915 | H63: =H40+H48+H62 -> 1,397.67
B65: Common Forms Approved Under Other Packages - Burden Reported as RCF
A66: 3570.265(c)(1) | B66: Application for Federal Assistance (Non-construction Programs) | C66: SF-424 (4040-0004) | D66: 51 | E66: 1 | F66: 51 | G66: 1.00 | H66: =F66*G66 -> 51.00
A68: 3570.265(c)(2) | B68: Budget Information--Non-Construction Programs | C68: SF-424A (4040-0006) | D68: 51 | E68: 1 | F68: 51 | G68: 1.00 | H68: =F68*G68 -> 51.00
A70: 3570.265(c)(2) | B70: Assurances--Non-construction Programs | C70: SF-424B (4040-0007) | D70: 51 | E70: 1 | F70: 51 | G70: 0.50 | H70: =F70*G70 -> 25.50
A72: 3570.268(a) | B72: Request for Advance or Reimbursement | C72: SF-270 (4040-0012) | D72: 12 | E72: 12 | F72: 51 | G72: 1.00 | H72: =SUM(F72*G72) -> 51.00
A74: 3570.265(c)(11) | B74: Disclosure of Lobbying Activities | C74: SF LLL (4040-0013) | D74: 51 | E74: 1 | F74: =SUM(D74*E74) -> 51 | G74: 1.00 | H74: =SUM(F74*G74) -> 51.00
A76: 3570.270(a) | B76: Federal Financial Report | C76: SF-425 (4040-0014) | D76: 12 | E76: 4 | F76: 12 | G76: 1.00 | H76: =SUM(F76*G76) -> 12.00

Sheet Sheet2

Sheet Sheet3
